Cogmind - Beta 9.6 @@@ ROGUE MODE // 2020.05.23 @ 16:31:44 Player: Nalzok Result: Destroyed by H-66 Slayer with Gauss Rifle Performance ------------- Evolutions (5) 2500 Regions Visited (19) 3800 Robots Destroyed (158) 790 Value Destroyed (6272) 6272 Prototype IDs (32) 640 Alien Tech Used (0) 0 Bonus (2318) 2318 TOTAL SCORE: 16320 Bonus ------- High Alert Combat Kills 906 Follower Combat Kills 3089 Entered Garrisons 400 Used RIF Installer 1000 Aligned with FarCom 300 Friendly Fire -3377 Cogmind --------- Core Integrity 0/1000 Matter 60/300 Energy 100/100 System Corruption 13% Temperature Cool (0) Movement Core (150) Ox2 Location -5/Factory Parts ------- > --- POWER (2) -------- (None) > --- PROPULSION (4) --- (None) > --- UTILITY (6) ------ Advanced Hacking Suite Advanced System Shield Relay Coupler [Swarmer] (35) Relay Coupler [Grunt] (24) Relay Coupler [Sentry] (9) > --- WEAPON (5) ------- Improved Remote Datajack Heavy Flail > --- INVENTORY (4) ---- Damper Plating Missile Launcher Peak State ------------ > --- POWER ------------ Antimatter Reactor Light Particle Reactor > --- PROPULSION ------- Heavy Treads Heavy Treads > --- UTILITY ---------- Advanced Heat Sink Large Storage Unit Large Storage Unit Enhanced Optical Array Advanced Hacking Suite Advanced System Shield > --- WEAPON ----------- Heavy Gatling Laser KE Penetrator Improved KE Penetrator Improved KE Penetrator Heavy Flak Cannon > --- INVENTORY -------- Antimatter Reactor Light Antimatter Reactor Advanced Heat Sink Centrium Medium Armor Plating Damper Plating Relay Coupler [Swarmer] Relay Coupler [Sentry] Wave Gun Magnetic Acceleration Cannon Bore Cannon Missile Launcher Missile Launcher Improved Remote Datajack Heavy Flail [Rating: 104] Favorites ----------- Power Micro Fission Core Engine Light Angular Momentum Engine Power Core Micro Fission Core Reactor Light Particle Reactor Propulsion Heavy Treads Treads Heavy Treads Leg Carbon-fiber Leg Wheel Compact Wheel Hover Unit Cooled Aerolev Unit Utility Large Storage Unit Device Terrain Scanner Storage Large Storage Unit Processor Enhanced Optical Array Hackware Advanced System Shield Protection Hardened Light Armor Plating Weapon Improved Heavy Laser Energy Gun Improved Heavy Laser Energy Cannon Heavy Disruptor Cannon Ballistic Gun Improved KE Penetrator Ballistic Cannon Bore Cannon Launcher Improved Grenade Launcher Special Weapon Improved Remote Datajack Impact Weapon Heavy Flail Build | -11 -10 -10 -10 -9 -8 -7 -7 -7 -7 -6 -6 -6 -6 -6 -6 -6 -5 -5 -5 ------- Run | Scr Mat Min Exi Min Mat Fac Was Fac Gar Fac Was Fac Ext Cet Arc Hub Fac Gar Fac Slots Evolved 10 | . . . . . 4 2 . . . 2 . . . . . . 2 . . Power 1 | . . . . . . . . . . 1 . . . . . . . . . Propulsion 2 | . . . . . . . . . . . . . . . . . 2 . . Utility 4 | . . . . . 3 . . . . 1 . . . . . . . . . Weapon 3 | . . . . . 1 2 . . . . . . . . . . . . . Parts Attached 181 | . 6 5 2 6 24 8 10 4 . 8 2 1 6 11 2 2 43 19 22 Power 23 | . . 1 . 2 2 . 1 . . 2 . . 2 1 1 . 5 1 5 Engine 11 | . . 1 . 2 2 . . . . 1 . . 1 . . . . 1 3 Core 8 | . . . . . . . 1 . . 1 . . 1 . 1 . 3 . 1 Reactor 4 | . . . . . . . . . . . . . . 1 . . 2 . 1 Propulsion 29 | . 3 . . . 5 . 3 . . . . . . 1 . . 10 7 . Treads 8 | . . . . . . . 2 . . . . . . 1 . . 5 . . Leg 18 | . 3 . . . 5 . 1 . . . . . . . . . 2 7 . Wheel 2 | . . . . . . . . . . . . . . . . . 2 . . Hover 1 | . . . . . . . . . . . . . . . . . 1 . . Flight . | . . . . . . . . . . . . . . . . . . . . Utility 39 | . 2 2 2 . 9 1 1 2 . 2 . . 1 4 . 1 3 2 7 Device 13 | . . 1 . . 3 . . . . 1 . . . 2 . . 3 1 2 Storage 4 | . . . 2 . . . . 1 . . . . . . . . . . 1 Processor 6 | . . . . . 2 . . 1 . 1 . . . . . . . 1 1 Hackware 6 | . . . . . . . . . . . . . 1 1 . 1 . . 3 Protection 10 | . 2 1 . . 4 1 1 . . . . . . 1 . . . . . Artifact . | . . . . . . . . . . . . . . . . . . . . Weapon 90 | . 1 2 . 4 8 7 5 2 . 4 2 1 3 5 1 1 25 9 10 Energy Gun 28 | . . . . . 5 2 3 . . 4 1 . . 2 . . 7 1 3 Energy Cannon 2 | . . . . . . . . . . . . . . . . . . 1 1 Ballistic Gun 29 | . 1 2 . 4 1 3 1 2 . . . . 1 2 1 . 9 2 . Ballistic Cannon 14 | . . . . . 1 . 1 . . . 1 . 2 . . 1 5 . 3 Launcher 11 | . . . . . 1 1 . . . . . . . 1 . . 4 3 1 Special Weapon 3 | . . . . . . 1 . . . . . . . . . . . 1 1 Impact Weapon 3 | . . . . . . . . . . . . 1 . . . . . 1 1 Slashing Weapon . | . . . . . . . . . . . . . . . . . . . . Piercing Weapon . | . . . . . . . . . . . . . . . . . . . . Special Melee Weapon . | . . . . . . . . . . . . . . . . . . . . Unidentified Prototypes 8 | . . . . . . . . . . 1 . . . 2 . . 4 . 1 Parts Lost 44 | . . 2 . . 9 . . . . . . . 1 . . . 7 11 14 Power 8 | . . 1 . . . . . . . . . . . . . . 1 1 5 Propulsion 12 | . . . . . 2 . . . . . . . . . . . 2 4 4 Utility 5 | . . 1 . . 2 . . . . . . . 1 . . . . . 1 Weapon 19 | . . . . . 5 . . . . . . . . . . . 4 6 4 Highest Loss Streak 10 | . . 1 . . 7 . . . . . . . 1 . . . 4 10 5 Average Slot Usage (%) 90 | . 94 99 100 100 84 86 97 92 92 93 93 93 92 93 93 93 88 85 85 Engine 4 | . 14 13 14 14 9 7 1 . . 6 6 6 6 2 . . . 3 2 Core 3 | . . . . . . . 5 7 7 6 6 6 6 6 6 6 1 5 4 Reactor 1 | . . . . . . . . . . . . . . 3 6 6 8 . . Treads 4 | . . . . . . . 2 7 7 6 6 6 6 6 6 6 11 1 . Leg 9 | . 28 28 28 28 17 15 9 . . . . . . . . . . 13 16 Device 4 | . . . . . 7 7 7 7 7 10 13 13 7 2 6 6 5 1 . Storage 13 | . 14 14 21 28 18 15 15 15 15 13 13 13 13 13 13 13 11 11 10 Processor 7 | . . . . . 8 7 7 7 7 13 13 13 13 13 13 7 5 9 4 Hackware 5 | . . . . . . . . . . . . . 5 6 6 11 11 11 16 Protection 3 | . 10 12 6 . 8 7 7 7 7 2 . . . 3 . . . . . Energy Gun 8 | . 14 1 . . 5 8 15 15 15 23 26 25 20 12 2 . 5 2 4 Ballistic Gun 10 | . 13 26 28 28 5 9 16 15 15 2 . . 1 9 17 20 13 4 . Ballistic Cannon 6 | . . . . . 5 5 5 7 7 6 6 6 11 6 6 9 7 1 9 Launcher 1 | . . . . . . . . . . . . . . 3 6 3 . 4 1 Naked Turns . | . . . . . . . . . . . . . . . . . . . . Heaviest Build 112 | 10 17 17 37 39 106 112 74 70 70 84 81 81 85 91 85 86 97 82 93 Greatest Support 140 | 20 26 26 26 26 30 25 70 70 70 70 70 70 70 70 70 70 140 65 65 Greatest Overweight (x) 30 | . . . 1 1 4 4 2 . . 1 1 1 1 1 1 1 5 15 30 Average Overweight (x) . | . . . . 1 2 3 1 . . 1 1 1 1 1 1 1 . 1 1 Largest Inventory Capacity 16 | 6 6 6 16 16 16 16 16 16 16 16 16 16 16 16 16 16 16 16 16 Average Capacity 15 | 6 6 6 11 16 16 16 16 16 16 16 16 16 16 16 16 16 16 16 15 Most Carried 16 | 5 6 6 11 16 16 16 16 16 16 16 16 16 16 16 16 16 16 16 16 Average Carried 14 | 3 5 5 7 14 15 15 15 15 15 15 15 16 15 15 16 15 15 15 15 Final Capacity 16 | 6 6 6 16 16 16 16 16 16 16 16 16 16 16 16 16 16 16 16 4 Final Carried 16 | 2 6 6 11 16 16 15 16 16 16 16 16 16 16 16 16 16 16 16 4 Class Distribution -------------------- 50% | Scavenger-Skirmisher 18% | Skirmisher 13% | Mutant 12% | Scavenger-Mutant Dominant Class ---------------- Mutant | -10/Materials Mutant | -10/Mines Mutant | -10/Exiles Mutant | -9/Mines Scavenger-Skirmisher | -8/Materials Scavenger-Skirmisher | -7/Factory Scavenger-Skirmisher | -7/Waste Skirmisher | -7/Factory Skirmisher | -7/Garrison Skirmisher | -6/Factory Skirmisher | -6/Waste Skirmisher | -6/Factory Skirmisher | -6/Extension Scavenger-Skirmisher | -6/Cetus Scavenger-Skirmisher | -6/Archives Scavenger-Skirmisher | -6/Hub_04(d) Scavenger-Skirmisher | -5/Factory Scavenger-Mutant | -5/Garrison Scavenger-Mutant | -5/Factory Resources | -11 -10 -10 -10 -9 -8 -7 -7 -7 -7 -6 -6 -6 -6 -6 -6 -6 -5 -5 -5 ----------- Run | Scr Mat Min Exi Min Mat Fac Was Fac Gar Fac Was Fac Ext Cet Arc Hub Fac Gar Fac Matter Collected 4681 | 200 70 72 . 100 298 101 115 40 34 101 20 35 419 349 125 98 1201 728 575 Remotely . | . . . . . . . . . . . . . . . . . . . . Salvage Created 6215 | . 109 65 . 42 1108 173 . . 99 47 . 48 994 256 85 . 2212 591 386 Parts 269 | . 8 7 . 5 62 13 . . 4 . . 1 30 8 2 . 105 14 10 Haulers Intercepted 1 | . . . . . 1 . . . . . . . . . . . . . . Recyclers Shooed 2 | . 1 . . . . . . . . . . . 1 . . . . . . Parts Field Recycled . | . . . . . . . . . . . . . . . . . . . . Retrieved Matter . | . . . . . . . . . . . . . . . . . . . . Parts Self-Destructed . | . . . . . . . . . . . . . . . . . . . . Prevented . | . . . . . . . . . . . . . . . . . . . . Kills | -11 -10 -10 -10 -9 -8 -7 -7 -7 -7 -6 -6 -6 -6 -6 -6 -6 -5 -5 -5 ------- Run | Scr Mat Min Exi Min Mat Fac Was Fac Gar Fac Was Fac Ext Cet Arc Hub Fac Gar Fac Combat Hostiles Destroyed 113 | . 2 5 . 1 28 2 . . . 1 . 1 8 7 1 . 34 19 4 Guns 45 | . 1 5 . 1 4 1 . . . 1 . 1 4 3 1 . 16 5 2 Cannons 37 | . . . . . 23 1 . . . . . . 4 1 . . 6 . 2 AOE 30 | . 1 . . . 1 . . . . . . . . 3 . . 12 13 . Classes Destroyed 18 | . 2 2 . 1 8 . . . . . . 1 . . . . 2 1 1 Worker 4 | . . . . 1 1 . . . . . . . . . . . . . 2 Builder 7 | . 1 . . . 2 3 . . . . . . . . . . 1 . . Tunneler 1 | . . . . . . . . . . . . . . . . . . . 1 Hauler 1 | . . . . . 1 . . . . . . . . . . . . . . Recycler 11 | . . . . . 2 . . . . . . . 4 . . . 4 . 1 Operator 2 | . . . . . 1 . . . . . . . 1 . . . . . . Drone 10 | . . . . . . . . . . . . . . . . . 10 . . Watcher 4 | . . . . . 2 . . . . . . . 1 . . . 1 . . Swarmer 24 | . . 3 . 1 4 . . . . . . 1 1 4 . . 10 . . Grunt 41 | . 2 . . . 12 . . . . . . . 2 1 . . 9 13 2 Brawler 7 | . . . . . 3 . . . . . . . . 1 . . . 3 . Duelist 1 | . . . . . . . . . . . . . . . . . . 1 . Protector 1 | . . . . . 1 . . . . . . . . . . . . . . Sentry 23 | . . . . . 7 2 . . . 1 . . 5 . 1 . 6 . 1 Hunter 5 | . . . . . 1 . . . . . . . . . . . 2 2 . Programmer 9 | . . . . . . . . . . . . . . . . . 7 . 2 Cetus Guard 1 | . . . . . . . . . . . . . . 1 . . . . . Enhanced Grunt 2 | . . . . . . . . . . . . . . . . . 2 . . Assembled 2 | . . 2 . . . . . . . . . . . . . . . . . Surgeon 2 | . . . . . . . . . . . . 1 . 1 . . . . . Best Kill Streak 9 | . 3 3 . 1 8 4 . . . 1 . 1 3 2 1 . 9 4 2 Combat Bots Only 7 | . 2 3 . 1 7 1 . . . 1 . 1 2 2 1 . 7 4 1 Max Kills in Single Turn 12 | . 1 1 . 1 1 1 . . . 1 . 1 3 2 1 . 12 2 1 Gunslinging . | . . . . . . . . . . . . . . . . . . . . Exploded 6 | . 1 . . . 1 . . . . . . . . 2 . . 6 2 . Melee . | . . . . . . . . . . . . . . . . . . . . Uniques/NPCs Destroyed . | . . . . . . . . . . . . . . . . . . . . Combat | -11 -10 -10 -10 -9 -8 -7 -7 -7 -7 -6 -6 -6 -6 -6 -6 -6 -5 -5 -5 -------- Run | Scr Mat Min Exi Min Mat Fac Was Fac Gar Fac Was Fac Ext Cet Arc Hub Fac Gar Fac Damage Taken 9544 | . 105 212 . 71 1564 220 . . . 192 . 30 291 517 230 18 2526 1645 1923 Core 1304 | . . 22 . . 175 5 . . . . . . 73 . 26 . 300 399 304 Absorbed by Shields 207 | . . . . . . . . . . . . . 74 19 . . . 10 104 Core Remaining (%) 89 | 100 . . . 91 68 . . . 99 . . . . . . 88 . . . Volleys Fired 266 | . 10 16 . 10 27 7 1 . 2 3 . 7 30 14 7 3 45 51 33 Largest 5 | . 2 2 . 2 3 2 5 . 5 5 . 5 5 5 4 5 5 5 5 Hottest 352 | . 60 60 . 40 131 68 280 . 275 317 . 317 309 276 188 213 352 276 340 Shots Fired 884 | . 20 32 . 20 151 18 5 . 10 15 . 23 112 56 25 15 216 70 96 Gun 545 | . 20 32 . 20 73 14 4 . 8 12 . 16 62 38 18 9 153 38 28 Cannon 301 | . . . . . 76 4 1 . 2 3 . 7 50 14 7 6 57 11 63 Launcher 37 | . . . . . 2 . . . . . . . . 4 . . 6 21 4 Special 1 | . . . . . . . . . . . . . . . . . . . 1 Kinetic 585 | . 10 31 . 20 116 11 3 . 6 3 . 7 52 29 21 15 163 37 61 Thermal 218 | . . . . . 22 . 2 . 4 12 . 16 60 23 4 . 35 12 28 Explosive 37 | . . . . . 2 . . . . . . . . 4 . . 6 21 4 Electromagnetic 43 | . 10 1 . . 11 7 . . . . . . . . . . 12 . 2 Robot Hit Streak 16 | . 5 3 . 7 12 9 16 . . 1 . 2 11 9 4 12 13 5 5 Robot Miss Streak 7 | . 4 4 . 3 5 2 2 . . 3 . 3 3 5 4 2 4 3 7 Penetration Max 1 | . . . . . . . . . . . . . 1 . 1 . 1 . 1 Secondary Targets . | . . . . . . . . . . . . . . . . . . . . Autonomous 81 | . . . . . 76 5 . . . . . . . . . . . . . Shots Hit Robots 509 | . 10 16 . 11 110 15 4 . . 4 . 4 57 34 17 13 134 36 44 Core Hits 335 | . 6 9 . 4 50 7 3 . 4 1 . 2 23 28 8 9 117 46 18 Critical Hits 51 | . . . . . 3 . . . 1 . . 1 17 1 2 2 22 . 2 Critical Kills 20 | . . . . . 1 . . . 1 . . . 7 . 1 . 9 . 1 Critical Parts Destroyed 28 | . . . . . 2 . . . . . . 1 9 1 1 2 11 . 1 Melee Attacks 10 | . . . . . . . . . . . . 1 . . . . . 2 7 Impact 10 | . . . . . . . . . . . . 1 . . . . . 2 7 Slashing . | . . . . . . . . . . . . . . . . . . . . Piercing . | . . . . . . . . . . . . . . . . . . . . Sneak Attacks 2 | . . . . . . . . . . . . . . . . . . . 2 Combat Hostiles . | . . . . . . . . . . . . . . . . . . . . Follow-up Attacks . | . . . . . . . . . . . . . . . . . . . . Damage Inflicted 21714 | . 228 143 . 95 5710 389 135 . 71 103 . 91 1690 1378 426 362 5390 3722 1781 Guns 6874 | . 112 143 . 95 566 207 107 . 58 103 . 27 1023 582 304 198 2523 513 313 Cannons 8256 | . . . . . 4852 182 28 . 13 . . 64 667 309 122 164 766 148 941 Explosions 6319 | . 116 . . . 292 . . . . . . . . 487 . . 2101 3024 299 Melee 246 | . . . . . . . . . . . . . . . . . . 37 209 Ramming 19 | . . . . . . . . . . . . . . . . . . . 19 Kinetic 11695 | . 58 130 . 95 5048 289 89 . 48 . . 64 713 532 375 362 2456 495 941 Thermal 3271 | . 116 . . . 350 . 46 . 23 103 . 27 977 359 51 . 740 166 313 Explosive 5770 | . . . . . 194 . . . . . . . . 487 . . 1766 3024 299 Electromagnetic 713 | . 54 13 . . 118 100 . . . . . . . . . . 428 . . Impact 246 | . . . . . . . . . . . . . . . . . . 37 209 Slashing . | . . . . . . . . . . . . . . . . . . . . Piercing . | . . . . . . . . . . . . . . . . . . . . Highest Corruption 13 | . . . . . 1 . . . . . . . . . . . 6 6 13 Average Corruption 5 | . . . . . 1 . . . . . . . . . . . 3 6 9 Corruption Purged . | . . . . . . . . . . . . . . . . . . . . Effects 116 | . . . . . 3 . . . . . . . . . . . 25 29 59 Message Errors 20 | . . . . . 1 . . . . . . . . . . . 5 4 10 Matter Fused 23 | . . . . . . . . . . . . . . . . . 3 9 11 Heat Flow Errors 14 | . . . . . . . . . . . . . . . . . 3 3 8 Energy Discharges 15 | . . . . . 1 . . . . . . . . . . . 3 5 6 Parts Rejected 2 | . . . . . . . . . . . . . . . . . . 1 1 Data Loss (minor) 10 | . . . . . 1 . . . . . . . . . . . 2 2 5 Data Loss (major) 2 | . . . . . . . . . . . . . . . . . . 1 1 Misfires 3 | . . . . . . . . . . . . . . . . . 1 2 . Alerts 1 | . . . . . . . . . . . . . . . . . . . 1 Targeting Errors 22 | . . . . . . . . . . . . . . . . . 6 2 14 Weapon Failures 4 | . . . . . . . . . . . . . . . . . 2 . 2 Overload Shots . | . . . . . . . . . . . . . . . . . . . . Overflow Damage 1132 | . . . . . 663 36 . . . . . . 9 9 . . 36 134 245 Projectiles 751 | . . . . . 623 36 . . . . . . 9 . . . . . 83 Explosions 192 | . . . . . 40 . . . . . . . . 9 . . 36 107 . Melee 189 | . . . . . . . . . . . . . . . . . . 27 162 Knockbacks 49 | . . . . . 17 . . . . . . . 3 3 . 2 10 1 13 Impact 2 | . . . . . . . . . . . . . . . . . . . 2 Kinetic 45 | . . . . . 16 . . . . . . . 2 3 . 2 10 1 11 Secondary 2 | . . . . . 1 . . . . . . . 1 . . . . . . Self-Inflicted Damage 409 | . . . . . 125 . . . . . . . . . . . 173 67 44 Shots 11 | . . . . . 3 . . . . . . . . . . . 5 2 1 Rammed . | . . . . . . . . . . . . . . . . . . . . Targets Rammed 1 | . . . . . . . . . . . . . . . . . . . 1 Kicked 1 | . . . . . . . . . . . . . . . . . . . 1 Crushed . | . . . . . . . . . . . . . . . . . . . . Highest Temperature 600 | . 168 26 . 12 382 . 213 . 207 301 . 336 449 570 147 180 599 346 600 Average Temperature 152 | . 106 6 . 7 106 . 110 . 107 158 . 136 147 165 53 87 162 87 227 Received Heat Transfer 1785 | . 63 . . 30 405 . . . . 54 . . 67 176 18 6 351 201 414 Effects 43 | . . . . . 1 . . . . . . 1 3 6 . . 8 . 24 Shutdowns 14 | . . . . . . . . . . . . . 2 2 . . 3 . 7 Energy Bleed 5 | . . . . . . . . . . . . 1 . . . . 1 . 3 Interference 11 | . . . . . . . . . . . . . . . . . 1 . 10 Matter Decay 3 | . . . . . . . . . . . . . . 2 . . 1 . . Short Circuit 6 | . . . . . . . . . . . . . 1 2 . . . . 3 Damage (minor) 3 | . . . . . 1 . . . . . . . . . . . 1 . 1 Damage (core) 1 | . . . . . . . . . . . . . . . . . 1 . . Siege Activations . | . . . . . . . . . . . . . . . . . . . . Robots Corrupted . | . . . . . . . . . . . . . . . . . . . . Combat Hostiles . | . . . . . . . . . . . . . . . . . . . . Parts Fried 5 | . . . . . 1 . . . . . . . . . . . 1 1 2 Impact Corruptions 7 | . . . . . . . . . . . . . . . . . . 1 6 Robots Melted . | . . . . . . . . . . . . . . . . . . . . Combat Hostiles . | . . . . . . . . . . . . . . . . . . . . Parts Melted 7 | . . . . . 2 . . . . 2 . . 3 . . . . . . Heat Transferred 5055 | . 150 . . . 655 . 74 . 37 148 . 37 1406 518 74 . 1160 275 521 Parts Sabotaged . | . . . . . . . . . . . . . . . . . . . . Parts Stolen . | . . . . . . . . . . . . . . . . . . . . Parts Stripped . | . . . . . . . . . . . . . . . . . . . . Power Chain Reactions 3 | . 1 . . . 1 . . . . . . . . . . . 1 . . Missiles Intercepted . | . . . . . . . . . . . . . . . . . . . . Alert | -11 -10 -10 -10 -9 -8 -7 -7 -7 -7 -6 -6 -6 -6 -6 -6 -6 -5 -5 -5 ------- Run | Scr Mat Min Exi Min Mat Fac Was Fac Gar Fac Was Fac Ext Cet Arc Hub Fac Gar Fac Peak Influence 1095 | . 62 84 . 184 582 220 77 477 1039 627 219 287 397 829 524 267 795 1095 680 Average Influence 333 | . 18 38 . 121 265 167 38 172 688 574 216 138 208 569 435 165 399 757 357 Maximum Alert Level 3 | . . . . . 2 1 . 2 3 2 1 1 1 3 2 1 3 3 2 Low Security (%) 36 | 100 100 100 . 100 26 79 100 51 . . 1 51 49 5 . 55 27 . 25 Level 1 30 | . . . . . 53 20 . 37 24 . 98 48 50 30 44 44 34 . 27 Level 2 19 | . . . . . 19 . . 10 8 100 . . . 19 55 . 18 35 47 Level 3 13 | . . . . . . . . . 66 . . . . 45 . . 19 64 . Level 4 . | . . . . . . . . . . . . . . . . . . . . Level 5 . | . . . . . . . . . . . . . . . . . . . . High Security . | . . . . . . . . . . . . . . . . . . . . Max Security . | . . . . . . . . . . . . . . . . . . . . Squads Dispatched 33 | . . . . . 3 . . 5 . . . 4 4 3 . 2 7 . 5 Investigation 7 | . . . . . . . . 1 . . . . 2 3 . 1 . . . Extermination 7 | . . . . . . . . 1 . . . 1 . . . . 3 . 2 Reinforcement 17 | . . . . . 2 . . 2 . . . 3 2 . . 1 4 . 3 Assault 1 | . . . . . 1 . . . . . . . . . . . . . . Garrison 1 | . . . . . . . . 1 . . . . . . . . . . . Intercept . | . . . . . . . . . . . . . . . . . . . . Construction Impeded 4 | . . . . . . . . 1 . . . 1 . . . . 1 . 1 Haulers Reinforced 2 | . . . . . . . . . . . . . . . . . 1 . 1 Stealth | -11 -10 -10 -10 -9 -8 -7 -7 -7 -7 -6 -6 -6 -6 -6 -6 -6 -5 -5 -5 --------- Run | Scr Mat Min Exi Min Mat Fac Was Fac Gar Fac Was Fac Ext Cet Arc Hub Fac Gar Fac Distress Signals 13 | . 1 . . . 3 . . 1 . . . 1 1 1 1 1 3 . . Communications Jammed . | . . . . . . . . . . . . . . . . . . . . Distress Signals . | . . . . . . . . . . . . . . . . . . . . Times Spotted 229 | . 3 6 . 8 39 2 2 8 9 1 . 11 30 24 11 4 41 15 15 Peak Tracking Total 7 | . 3 3 . 2 7 1 1 3 5 1 . 5 7 6 2 2 7 5 3 Tactical Retreats 15 | . . . . . 6 . . . . . . 1 . . . 1 3 3 1 Traps | -11 -10 -10 -10 -9 -8 -7 -7 -7 -7 -6 -6 -6 -6 -6 -6 -6 -5 -5 -5 ------- Run | Scr Mat Min Exi Min Mat Fac Was Fac Gar Fac Was Fac Ext Cet Arc Hub Fac Gar Fac Traps Triggered 15 | . 1 . . . . 1 . . . 1 . . 1 . . . 2 7 2 Indirectly . | . . . . . . . . . . . . . . . . . . . . Trap Hack Attempts . | . . . . . . . . . . . . . . . . . . . . Triggered . | . . . . . . . . . . . . . . . . . . . . Disarmed . | . . . . . . . . . . . . . . . . . . . . Reprogrammed . | . . . . . . . . . . . . . . . . . . . . Reused . | . . . . . . . . . . . . . . . . . . . . Traps Extracted . | . . . . . . . . . . . . . . . . . . . . Installed . | . . . . . . . . . . . . . . . . . . . . Triggered . | . . . . . . . . . . . . . . . . . . . . Machines | -11 -10 -10 -10 -9 -8 -7 -7 -7 -7 -6 -6 -6 -6 -6 -6 -6 -5 -5 -5 ---------- Run | Scr Mat Min Exi Min Mat Fac Was Fac Gar Fac Was Fac Ext Cet Arc Hub Fac Gar Fac Machines Disabled 32 | . . . . . 2 . . 2 1 . . 2 3 4 4 2 11 1 . Max in Single Turn 4 | . . . . . 1 . . . 1 . . . 1 1 1 1 4 1 . Garrison Access 1 | . . . . . 1 . . . . . . . . . . . . . . Garrison Relay 2 | . . . . . . . . . 1 . . . . . . . . 1 . Machines Sabotaged . | . . . . . . . . . . . . . . . . . . . . Garrisons Compromised . | . . . . . . . . . . . . . . . . . . . . Overloaded Fab Kills . | . . . . . . . . . . . . . . . . . . . . Fab Network Shutdowns . | . . . . . . . . . . . . . . . . . . . . Hacking | -11 -10 -10 -10 -9 -8 -7 -7 -7 -7 -6 -6 -6 -6 -6 -6 -6 -5 -5 -5 --------- Run | Scr Mat Min Exi Min Mat Fac Was Fac Gar Fac Was Fac Ext Cet Arc Hub Fac Gar Fac Machines Accessed 40 | . 1 . 2 . 3 . . 3 . . . 3 14 3 1 2 3 . 5 Terminals 31 | . 1 . . . 3 . . 1 . . . 2 14 3 . 2 1 . 4 Fabricators 3 | . . . . . . . . 1 . . . . . . . . 1 . 1 Repair Stations 1 | . . . . . . . . . . . . 1 . . . . . . . Recycling Units . | . . . . . . . . . . . . . . . . . . . . Scanalyzers . | . . . . . . . . . . . . . . . . . . . . Garrison Access 2 | . . . . . . . . 1 . . . . . . . . 1 . . Total Hacks 115 | . 5 . 2 . 5 . . 8 . . . 7 27 8 25 11 6 . 11 Successful 63 | . 1 . 2 . 2 . . 4 . . . 4 9 1 25 5 4 . 6 Failed 52 | . 4 . . . 3 . . 4 . . . 3 18 7 . 6 2 . 5 Catastrophic 15 | . 2 . . . 1 . . . . . . 1 5 3 . 2 . . 1 Database Lockouts . | . . . . . . . . . . . . . . . . . . . . Manual 49 | . 5 . 1 . 5 . . 3 . . . 1 5 3 7 10 4 . 5 Terminals 78 | . 5 . . . 5 . . 4 . . . 4 27 8 . 11 4 . 10 Fabricators 3 | . . . . . . . . 1 . . . . . . . . 1 . 1 Repair Stations 3 | . . . . . . . . . . . . 3 . . . . . . . Recycling Units . | . . . . . . . . . . . . . . . . . . . . Scanalyzers . | . . . . . . . . . . . . . . . . . . . . Garrison Access 4 | . . . . . . . . 3 . . . . . . . . 1 . . Terminal Hacks 53 | . 1 . 2 . 2 . . 2 . . . 3 9 1 25 3 1 . 4 Record 27 | . . . 1 . . . . 1 . . . . . . 25 . . . . Robot Analysis 1 | . . . . . . . . . . . . . 1 . . . . . . Prototype ID Bank 1 | . . . . . . . . . . . . . . . . 1 . . . Open Door 7 | . . . . . . . . . . . . 1 5 1 . . . . . Level Access Points 1 | . . . . . . . . . . . . . . . . . . . 1 Branch Access Points 3 | . . . . . . . . . . . . 1 1 . . 1 . . . Unreport Threat 11 | . 1 . . . 2 . . . . . . 1 2 . . 1 1 . 3 Recall Reinforcements 1 | . . . . . . . . 1 . . . . . . . . . . . EX-Prototype ID Bank 1 | . . . 1 . . . . . . . . . . . . . . . . Fabricator Hacks 2 | . . . . . . . . 1 . . . . . . . . 1 . . Network Status 1 | . . . . . . . . . . . . . . . . . 1 . . Build 1 | . . . . . . . . 1 . . . . . . . . . . . Repair Station Hacks 1 | . . . . . . . . . . . . 1 . . . . . . . Scan Component 1 | . . . . . . . . . . . . 1 . . . . . . . Recycling Unit Hacks . | . . . . . . . . . . . . . . . . . . . . Scanalyzer . | . . . . . . . . . . . . . . . . . . . . Garrison Access Hacks 2 | . . . . . . . . 1 . . . . . . . . 1 . . Unlock Access 2 | . . . . . . . . 1 . . . . . . . . 1 . . Unauthorized Hacks 5 | . . . . . . . . . . . . . . . . 2 1 . 2 Terminals 5 | . . . . . . . . . . . . . . . . 2 1 . 2 Assimilate 1 | . . . . . . . . . . . . . . . . . . . 1 Botnet 3 | . . . . . . . . . . . . . . . . 1 1 . 1 Operators 1 | . . . . . . . . . . . . . . . . 1 . . . Fabricators . | . . . . . . . . . . . . . . . . . . . . Repair Stations . | . . . . . . . . . . . . . . . . . . . . Recycling Units . | . . . . . . . . . . . . . . . . . . . . Scanalyzers . | . . . . . . . . . . . . . . . . . . . . Garrison Access . | . . . . . . . . . . . . . . . . . . . . Data Cores Recovered 1 | . . . . . . . . . . . . . 1 . . . . . . Used . | . . . . . . . . . . . . . . . . . . . . Hacking Detections 28 | . 1 . . . 2 . . 2 . . . 3 8 3 . 2 2 . 5 Full Trace Events 6 | . . . . . . . . 1 . . . . 2 3 . . . . . Feedback Events . | . . . . . . . . . . . . . . . . . . . . Feedback Blocked . | . . . . . . . . . . . . . . . . . . . . Robot Schematics Acquired . | . . . . . . . . . . . . . . . . . . . . Robots Built 3 | . . . . . . . . 3 . . . . . . . . . . . Matter 219 | . . . . . . . . 219 . . . . . . . . . . . Time 116 | . . . . . . . . 116 . . . . . . . . . . . Total Robot Build Rating 9 | . . . . . . . . 9 . . . . . . . . . . . Part Schematics Acquired . | . . . . . . . . . . . . . . . . . . . . Parts Built . | . . . . . . . . . . . . . . . . . . . . Matter . | . . . . . . . . . . . . . . . . . . . . Time . | . . . . . . . . . . . . . . . . . . . . Total Part Build Rating . | . . . . . . . . . . . . . . . . . . . . Parts Repaired . | . . . . . . . . . . . . . . . . . . . . Time . | . . . . . . . . . . . . . . . . . . . . Parts Recycled . | . . . . . . . . . . . . . . . . . . . . Recycled Matter . | . . . . . . . . . . . . . . . . . . . . Retrieved Matter . | . . . . . . . . . . . . . . . . . . . . Retrieved Components . | . . . . . . . . . . . . . . . . . . . . Parts Scanalyzed . | . . . . . . . . . . . . . . . . . . . . Part Schematics Acquired . | . . . . . . . . . . . . . . . . . . . . Parts Damaged . | . . . . . . . . . . . . . . . . . . . . Bothacking | -11 -10 -10 -10 -9 -8 -7 -7 -7 -7 -6 -6 -6 -6 -6 -6 -6 -5 -5 -5 ------------ Run | Scr Mat Min Exi Min Mat Fac Was Fac Gar Fac Was Fac Ext Cet Arc Hub Fac Gar Fac Used RIF Installer 2 | . . . . . . . . . 1 . . . . . . . . 1 . Robot Detection 1 | . . . . . . . . . . . . . . . . . . 1 . Robots Hacked 1 | . . . . . . . . . . . . . . . . . . . 1 Non-combat . | . . . . . . . . . . . . . . . . . . . . Combat 1 | . . . . . . . . . . . . . . . . . . . 1 Robot Hacks Applied 1 | . . . . . . . . . . . . . . . . . . . 1 formatsys_high 1 | . . . . . . . . . . . . . . . . . . . 1 Relay Couplers Released 8 | . . . . . 1 . . . 4 . . . . . . . . 3 . Machine Destruction 8 | . . . . . 1 . . . 4 . . . . . . . . 3 . Attached 3 | . . . . . . . . . . . . . . . . . . . 3 Robots Rewired 7 | . . . . . . . . . . . . . 7 . . . . . . Allies Hacked 1 | . . . . . . . . 1 . . . . . . . . . . . Hacks Repelled . | . . . . . . . . . . . . . . . . . . . . Allies | -11 -10 -10 -10 -9 -8 -7 -7 -7 -7 -6 -6 -6 -6 -6 -6 -6 -5 -5 -5 -------- Run | Scr Mat Min Exi Min Mat Fac Was Fac Gar Fac Was Fac Ext Cet Arc Hub Fac Gar Fac Total Allies 46 | . . 3 . . . . 20 3 . . . . 16 3 . . . . 1 Largest Group 20 | . . 3 3 3 2 . 20 20 15 12 10 10 9 9 4 3 3 . 1 Highest-Rated Group 536 | . . 40 40 40 24 . 536 536 466 384 318 318 390 390 313 282 282 . 49 Highest-Rated Ally 156 | . . 16 16 16 16 . 35 35 35 35 35 35 156 156 94 94 94 . 49 Total Orders 10 | . . . . . 1 . . . . . . . . . 3 . 4 . 2 STAY 2 | . . . . . . . . . . . . . . . 1 . . . 1 GOTO 3 | . . . . . 1 . . . . . . . . . . . 2 . . FOLLOW 3 | . . . . . . . . . . . . . . . 2 . . . 1 EXPLORE 2 | . . . . . . . . . . . . . . . . . 2 . . Ally Attacks 587 | . . . . 23 14 . 21 80 55 20 . 62 153 96 31 18 3 . 11 Total Damage 14668 | . . . . 262 109 . 723 1729 2060 392 . 1251 2979 2688 1202 693 128 . 452 Kills 108 | . . . . 7 2 . 2 14 19 2 . 7 23 19 3 6 . . 4 Allies Corrupted . | . . . . . . . . . . . . . . . . . . . . Allies Melted . | . . . . . . . . . . . . . . . . . . . . Intel | -11 -10 -10 -10 -9 -8 -7 -7 -7 -7 -6 -6 -6 -6 -6 -6 -6 -5 -5 -5 ------- Run | Scr Mat Min Exi Min Mat Fac Was Fac Gar Fac Was Fac Ext Cet Arc Hub Fac Gar Fac Robot Analysis Total 1 | . . . . . . . . . . . . . 1 . . . . . . Derelict Logs Recovered 1 | . . 1 . . . . . . . . . . . . . . . . . Drone Launches 12 | . . . . . . . . . . . . . . . . . 12 . . Drone Recoveries . | . . . . . . . . . . . . . . . . . . . . Exploration | -11 -10 -10 -10 -9 -8 -7 -7 -7 -7 -6 -6 -6 -6 -6 -6 -6 -5 -5 -5 ------------- Run | Scr Mat Min Exi Min Mat Fac Was Fac Gar Fac Was Fac Ext Cet Arc Hub Fac Gar Fac Turns Passed 13034 | 3 136 672 536 238 1324 361 899 503 469 178 405 296 1262 674 597 234 1594 1246 1407 Spaces Moved 6658 | 1 81 502 396 134 582 146 494 272 277 86 221 148 552 335 254 120 739 656 662 Core 35 | . . . . . . . . . . . . . . . . . . 3 32 Treads 3299 | . . . . . . . 191 272 277 86 221 148 552 335 254 120 734 109 . Legs 3319 | 1 81 502 396 134 582 146 303 . . . . . . . . . . 544 630 Wheels 5 | . . . . . . . . . . . . . . . . . 5 . . Hover . | . . . . . . . . . . . . . . . . . . . . Flight . | . . . . . . . . . . . . . . . . . . . . Fastest Speed 120 | 120 120 120 120 150 150 180 160 160 160 180 180 180 180 180 180 180 150 150 120 Average Speed 167 | 120 120 120 134 150 199 224 172 160 160 180 180 180 180 180 180 180 163 158 172 Slowest Speed 1550 | 120 120 120 150 150 240 240 180 160 160 180 180 180 180 180 180 180 180 800 1550 Overloaded Moves . | . . . . . . . . . . . . . . . . . . . . Propulsion Burnouts . | . . . . . . . . . . . . . . . . . . . . Robots Hopped . | . . . . . . . . . . . . . . . . . . . . Cave-ins Triggered . | . . . . . . . . . . . . . . . . . . . . Exploration Rate (%) 44 | 2 24 81 61 20 43 7 97 10 49 4 95 8 78 82 95 18 23 69 14 Regions Visited 19 Branch Regions 7 Pre-discovered Areas 2 | . . 1 1 . . . . . . . . . . . . . . . . Known Exits Taken 4 | . . . . . . . . 1 . . . 1 1 . . . 1 . . Unknown Exits Taken 9 | 1 1 1 1 1 1 . . . . . . . . 1 1 1 . . . Scrap Searched 2 | . . 2 . . . . . . . . . . . . . . . . . Spaces Dug 8 | . . . . . . . . . . . . 2 2 . . . . . 4 Terrain Destroyed 473 | . . . . . 30 2 . . . . . 2 17 21 2 3 134 168 94 Melee 5 | . . . . . . . . . . . . 1 . . . . . . 4 Projectile 106 | . . . . . 15 2 . . . . . 1 17 1 2 3 31 3 31 AOE 362 | . . . . . 15 . . . . . . . . 20 . . 103 165 59 Actions | -11 -10 -10 -10 -9 -8 -7 -7 -7 -7 -6 -6 -6 -6 -6 -6 -6 -5 -5 -5 --------- Run | Scr Mat Min Exi Min Mat Fac Was Fac Gar Fac Was Fac Ext Cet Arc Hub Fac Gar Fac Total 8041 | 4 99 546 401 158 699 166 554 342 298 103 236 161 755 376 378 132 999 789 845 Wait 523 | . 1 15 . . 30 . 12 58 10 . . 5 25 . 114 2 132 33 86 Move 6641 | . 80 501 395 133 581 146 493 271 276 86 220 147 551 334 253 119 738 655 662 Hop . | . . . . . . . . . . . . . . . . . . . . Pick Up 94 | . 2 4 2 4 17 2 14 3 4 1 5 . 2 7 . 3 8 7 9 Fast Attach 74 | . 4 2 1 . 7 3 3 . . 2 . . 3 4 1 . 23 12 9 Attach 32 | . . 1 . . 10 2 . . . 2 . . . 3 . 1 2 4 7 Detach 9 | . . 1 1 . 3 . . . . 1 . . . . . 1 . . 2 Swap 75 | . 2 2 1 6 7 3 7 4 . 4 2 1 3 4 1 1 18 3 6 Drop 148 | 4 . 4 1 5 17 3 24 5 2 4 9 . 6 10 2 2 29 8 13 Fire 266 | . 10 16 . 10 27 7 1 . 2 3 . 7 30 14 7 3 45 51 33 Melee 10 | . . . . . . . . . . . . 1 . . . . . 2 7 Ram . | . . . . . . . . . . . . . . . . . . . . Kick 1 | . . . . . . . . . . . . . . . . . . . 1 Crush . | . . . . . . . . . . . . . . . . . . . . Escape Stasis 31 | . . . . . . . . . 4 . . . 3 . . . . 14 10 Rewire 133 | . . . . . . . . 1 . . . . 132 . . . . . . Trap . | . . . . . . . . . . . . . . . . . . . . Miscellaneous 4 | . . . . . . . . . . . . . . . . . 4 . . Route ------- -11/Scrapyard -10/Materials -10/Mines (discovered 3 exits: [*Mat x2] / *Exi) -10/Exiles (discovered 2 exits: [*Min x2]) -9/Mines -8/Materials -7/Factory -7/Waste -7/Factory -7/Garrison -6/Factory -6/Waste -6/Factory (discovered 4 exits: Low x2 / *Ext x2) -6/Extension (discovered 2 exits: *Fac / *Cet) -6/Cetus -6/Archives (discovered 3 exits: *Fac / *Hub x2) -6/Hub_04(d) -5/Factory (discovered 2 exits: [*Upp] / Gar) -5/Garrison (discovered 3 exits: *Fac x3) -5/Factory (discovered 4 exits: *Fac x4) History --------- Turn | Location | Event 4 | -11/Scrapyard | Discovered new exit (range 0) 4 | -11/Scrapyard | Entered Materials 83 | -10/Materials | Discovered new exit (range 16) 140 | -10/Materials | Entered Mines 141 | -10/Mines | Learned location of Storage (-9) 174 | -10/Mines | Met a Derelict bent on vengeance 193 | -10/Mines | Assembled infested the area 195 | -10/Mines | Received a Rocket Launcher from a helpful Derelict 302 | -10/Mines | Build established: Mutant 460 | -10/Mines | Discovered new exit (range 7) 547 | -10/Mines | Discovered new exit (range 6) 640 | -10/Mines | Assisted by bots powering up and referring to "LRC-V3" 791 | -10/Mines | Deemed a non-threat by the Exiles lab entrance 791 | -10/Mines | Discovered new exit (range 5) 812 | -10/Mines | Entered Exiles 812 | -10/Exiles | Accompanied by 3 allies 828 | -10/Exiles | Discovered new exit (range 15) 842 | -10/Exiles | Met 8R-AWN 863 | -10/Exiles | Met EX-HEX 894 | -10/Exiles | Met EX-BIN 911 | -10/Exiles | Aligned with FarCom system 912 | -10/Exiles | Given EX-Vault access code 943 | -10/Exiles | Opened EX-Vault 970 | -10/Exiles | Warned to stay clear of 0b10 Research branches 1003 | -10/Exiles | Met EX-DEC 1009 | -10/Exiles | Learned location of Zion (-6) 1201 | -10/Exiles | Found AWS/Autocannon 1331 | -10/Exiles | Discovered new exit (range 10) 1348 | -10/Exiles | Left Exiles lab with AWS/Autocannon 1348 | -10/Exiles | Entered Mines 1348 | -9/Mines | Accompanied by 3 allies 1503 | -9/Mines | Discovered new exit (range 6) 1586 | -9/Mines | Entered Materials 1586 | -8/Materials | Accompanied by 2 allies 1586 | -8/Materials | Evolved 4 slots: Utility x3, Weapon x1 1976 | -8/Materials | Build established: Scavenger-Skirmisher 2139 | -8/Materials | Lost 7 parts (1n1u5w) 2176 | -8/Materials | Destroyed 7 combat bots 2468 | -8/Materials | Discovered new exit (range 11) 2910 | -8/Materials | Entered Factory 2910 | -7/Factory | Evolved 2 slots: Weapon x2 3271 | -7/Factory | Sucked down chute 3271 | -7/Factory | Entered Waste 3272 | -7/Waste | Joined by Warlord forces that had cleared the area 3781 | -7/Waste | Discovered new exit (range 15) 3790 | -7/Waste | A Compactor rumbled back to life 3790 | -7/Waste | Spotted C-40 Crusher 3791 | -7/Waste | Allies destroyed C-40 Crusher 3941 | -7/Waste | Found Damper Plating 3950 | -7/Waste | A Compactor rumbled back to life 3950 | -7/Waste | Spotted C-40 Crusher 3951 | -7/Waste | Allies destroyed C-40 Crusher 4170 | -7/Waste | Entered Factory 4170 | -7/Factory | Accompanied by 20 allies 4610 | -7/Factory | Identified exit to Garrison 4663 | -7/Factory | Fabricated G-47 Trooper (x3) 4672 | -7/Factory | Garrison activated, responded to threat 4673 | -7/Factory | Entered Garrison 4673 | -7/Garrison | Accompanied by 15 allies 4677 | -7/Garrison | Build established: Skirmisher 4681 | -7/Garrison | Installed Relay Interface Framework 4788 | -7/Garrison | Triggered checkpoint 4788 | -7/Garrison | Triggered checkpoint 4825 | -7/Garrison | Triggered checkpoint 4826 | -7/Garrison | Triggered checkpoint 4972 | -7/Garrison | Discovered new exit (range 16) 5030 | -7/Garrison | Triggered checkpoint 5056 | -7/Garrison | Garrison Relay disabled 5142 | -7/Garrison | Entered Factory 5142 | -6/Factory | Accompanied by 12 allies 5142 | -6/Factory | Evolved 2 slots: Power x1, Utility x1 5320 | -6/Factory | Sucked down chute 5320 | -6/Factory | Entered Waste 5320 | -6/Waste | The area was eerily silent 5376 | -6/Waste | Found Damper Plating 5500 | -6/Waste | 10 allies followed down the chute 5671 | -6/Waste | Discovered new exit (range 22) 5725 | -6/Waste | Entered Factory 5725 | -6/Factory | Accompanied by 10 allies 5833 | -6/Factory | Identified exit to Lower Caves 5833 | -6/Factory | Identified exit to Extension 6021 | -6/Factory | Entered Extension 6021 | -6/Extension | Accompanied by 5 allies 6058 | -6/Extension | Disrupted transfer network 6108 | -6/Extension | Rescued a captive Derelict 6109 | -6/Extension | Rescued a captive Derelict 6128 | -6/Extension | Rescued a captive Derelict 6129 | -6/Extension | Rescued a captive Derelict 6360 | -6/Extension | Identified exit to Cetus 6382 | -6/Extension | Rescued a captive Derelict 6383 | -6/Extension | Rescued a captive Derelict 6534 | -6/Extension | Spotted B-75 Beast 6550 | -6/Extension | Spotted B-75 Beast 6572 | -6/Extension | Allies destroyed B-75 Beast 6580 | -6/Extension | Allies destroyed B-75 Beast 6759 | -6/Extension | Rescued A7 7171 | -6/Extension | Rescued a captive Derelict 7172 | -6/Extension | Rescued a captive Derelict 7219 | -6/Extension | Discovered new exit (range 10) 7281 | -6/Extension | Build established: Scavenger-Skirmisher 7283 | -6/Extension | Entered Cetus 7283 | -6/Cetus | Accompanied by 9 allies 7288 | -6/Cetus | Acquired a Cetus Manufacturing Module code from A7 7302 | -6/Cetus | Spotted Cetus Guard 7302 | -6/Cetus | Spotted Cetus Guard 7307 | -6/Cetus | Spotted Cetus Guard 7309 | -6/Cetus | Spotted Cetus Guard 7317 | -6/Cetus | Allies destroyed Cetus Guard 7322 | -6/Cetus | Allies destroyed Cetus Guard 7329 | -6/Cetus | Destroyed Cetus Guard 7331 | -6/Cetus | Allies destroyed Cetus Guard 7459 | -6/Cetus | Started Cetus Manufacturing Module 7478 | -6/Cetus | Extracted ID and sensor layout for unrecognized location from A7's data core 7484 | -6/Cetus | Manufactured an Enhanced Grunt 7509 | -6/Cetus | Manufactured an Enhanced Grunt 7534 | -6/Cetus | Manufactured an Enhanced Grunt 7550 | -6/Cetus | Cetus Manufacturing Module disabled 7910 | -6/Cetus | Discovered new exit (range 22) 7957 | -6/Cetus | Entered Archives 7957 | -6/Archives | Accompanied by 4 allies 8028 | -6/Archives | Discovered new exit (range 22) 8038 | -6/Archives | Unable to access archive contents 8056 | -6/Archives | Discovered new exit (range 21) 8082 | -6/Archives | Unable to access archive contents 8099 | -6/Archives | Discovered new exit (range 22) 8109 | -6/Archives | Unable to access archive contents 8126 | -6/Archives | Unable to access archive contents 8554 | -6/Archives | Entered Hub_04(d) 8554 | -6/Hub_04(d) | Accompanied by 3 allies 8752 | -6/Hub_04(d) | Discovered new exit (range 14) 8788 | -6/Hub_04(d) | Entered Factory 8788 | -5/Factory | Accompanied by 3 allies 8788 | -5/Factory | Evolved 2 slots: Propulsion x2 9680 | -5/Factory | Destroyed 7 combat bots 9797 | -5/Factory | Destroyed 7 combat bots 10062 | -5/Factory | Discovered new exit (range 5) 10147 | -5/Factory | Lost 4 parts (1p3w) 10373 | -5/Factory | Identified exit to Garrison 10382 | -5/Factory | Entered Garrison 10569 | -5/Garrison | Triggered checkpoint 10623 | -5/Garrison | Core integrity fell below 50% 10653 | -5/Garrison | Lost 10 parts (1p3n6w) 10860 | -5/Garrison | Triggered checkpoint 10913 | -5/Garrison | Discovered new exit (range 9) 11060 | -5/Garrison | Discovered new exit (range 12) 11087 | -5/Garrison | Build established: Scavenger-Mutant 11170 | -5/Garrison | Triggered checkpoint 11202 | -5/Garrison | Triggered checkpoint 11388 | -5/Garrison | Discovered new exit (range 8) 11406 | -5/Garrison | Expanded RIF knowledge: Robot Detection 11444 | -5/Garrison | Triggered checkpoint 11555 | -5/Garrison | Garrison Relay disabled 11628 | -5/Garrison | Entered Factory 12368 | -5/Factory | Identified exit to Factory 12523 | -5/Factory | Build established: Scavenger-Skirmisher 12611 | -5/Factory | Lost 4 parts (1p2n1w) 12743 | -5/Factory | System corruption reached 10% 12750 | -5/Factory | Core integrity fell below 20% 13024 | -5/Factory | Lost 5 parts (2p1n1u1w) 13031 | -5/Factory | Build established: Hacker-Mutant 13035 | -5/Factory | Destroyed by H-66 Slayer with Gauss Rifle Last Messages --------------- 13003_ T-07 Excavator knocked back. 13004_ T-07 Excavator system terminally corrupted. 13004_ Lgt. Ion Engine fried. 13004_ Seismic Analyzer fried. 13009_ Slug penetrates Wall. 13012_ K-01 Serf cleans the Construction Platform. 13019_ Slug penetrates Wall. 13022_ Sneak attack on K-01 Serf. 13022_ Destroyed Med. Matter Pod. 13022_ Destroyed Lgt. Ion Engine. 13022_ Destroyed Wheel. 13022_ K-01 Serf system corrupted by crushing effect. 13022_ K-01 Serf knocked back. 13023_ K-01 Serf system terminally corrupted. 13027_ Acquired 21 matter. 13029_ K-01 Serf collects debris. 13032_ Construction Platform disabled. 13032_ Penetrated by Slug. 13032_ K-01 Serf collects debris. 13035_ Penetrated by Slug. Map ----- +----------------------------------------------------+ | ?????????????????# # """ ####### # "T | | ?????????????????# + + + "" | | ?????????????????# # #### # "" | | ?????????????????# #####+# #?# # | | ?????????????????# #?### # #?# ########### | | ?????????????????# #?# ### #?????????? | | ?????????????????# ### ### #?????????? | | ?????????????????# #?????????? | | ?????????????????# ### ### #?????????? | | ?????????????????# #?# ### #?????????? | | ?????????????????# #####+ #### #?????????? | | ?????????????????# # #]] #?????????? | | ?????????????????# # #! | #?????????? | | ?????????????????# # #!!! ##????????? | | ?????????????????# # # ![ ##????????? | | ?????????????????# ##+########]] ####??????? | | ??????????????? # % +??????? | | ?????????????????# ####### ####### ####??????? | | ?????????????????# # # ###???????? | | ?????????????????# + ##### #?????????? | | ?????????????????# # #??## #?????????? | | ??????????????#### # """"""" #????+#?????????? | | ????????# bh""""""" #???????????????? | | ????????# #g""""""" #???????????????? | | ????????# # """""" #???????????????? | | ????????# /k@ #???????????????? | | ????????# ###;#######???????????????? | | ?????????###+### ??? ????????????????????? | | ???????????????# ????? ???????????????????? | | ???????????????# ??????< ??????????????????? | | ???????????????# ???????? ##?????????????????? | | ???????????????# ???????? #??????????????????? | | ???????????????# ?????????? #??????????????????? | | ???????????????#??????????? #??????????????????? | | ????????????????????????????#??????????????????? | | ???????????????????????????????????????????????? | | ???????????????????????????????????????????????? | | ???????????????????????????????????????????????? | | ???????????????????????????????????????????????? | | ???????????????????????????????????????????????? | | ???????????????????????????????????????????????? | | ???????????????????????????????????????????????? | | ???????????????????????????????????????????????? | | ???????????????????????????????????????????????? | | ???????????????????????????????????????????????? | | ???????????????????????????????????????????????? | | ???????????????????????????????????????????????? | | | | | | | +----------------------------------------------------+ Best States ------------- Heat Dissipation 64 Energy Generation 39 Energy Capacity 405 Matter Stores 300 Matter Capacity 300 Sight Range 22 Terrain Scan Range 16 Terrain Scan Density 210 Armor Coverage 300 Evasion (%) 40 Target Analysis 6 Armor Integrity Analysis 66 Recoil Reduction 4 Offensive Hacking 14 Defensive Hacking 14 Item Schematics ----------------- None Robot Schematics ------------------ None Fabricated ------------ G-47 Trooper | x3 | -7/Factory | Preloaded Alien Tech Used ----------------- None Achievements -------------- Below Challenges ------------ None Game ------ Seed BurstInsulationMagmablaster Manual? 0 Play Time 01:32:45 Cumulative 270.2 hours Start 2020.05.23 @ 11:45:28 End 2020.05.23 @ 16:31:44 Sessions 3 Manual Loads 0 Difficulty Rogue Special Mode None Game No. 410 Rogue 409 Adventurer 0 Explorer 1 Win Type - Total 1 Types 1/0/0/0/0/0/0 Lore% 67 Gallery% 81 Achievement% 55 Wizard Run 0 Options --------- ASCII 1 Keyboard 1 Movement Vi Keybinds 0 Fullscreen 2 Font 14/Cog Map View 72x54 Tactical HUD 1 Map Filters NONE Filters LOW_CONTRAST(13,24,33) Steam 0 RUN: a3175e2a-69ef-47f9-b60f-1e8d0fe4e812